bitfinex/quotes_ETHUSD_20250507
["timestamp","ask_amount","ask_price","bid_price","bid_amount"]
[1746658054786,6.25285095,1819.8,1819.4,6.04612756]
[1746658054988,6.25285095,1819.8,1819.5,0.50139928]
[1746658055188,6.25283904,1819.8,1819.5,5.99734491]
[1746658056005,6.25283904,1819.8,1819.6,0.50139928]
[1746658056322,0.7577,1819.8,1819.6,5.99709794]
[1746658056521,0.7577,1819.8,1819.6,0.50139928]
[1746658057117,0.7577,1819.8,1819.7,0.50139928]
[1746658058131,10.9893894,1820.0,1819.7,1.00476833]
[1746658058310,0.8264,1820.1,1819.8,11.0448036]
[1746658058506,0.8264,1820.1,1819.9,0.50336905]
[1746658058833,0.8264,1820.1,1820.0,0.50336905]
[1746658059530,5.49239303,1820.7,1820.0,5.99778899]
[1746658059729,5.49359367,1820.4,1820.0,0.50336905]
[1746658059932,5.49359367,1820.4,1820.0,5.99770769]
[1746658060132,10.98639508,1820.5,1820.1,5.49413593]
[1746658060337,5.4931257,1820.5,1820.2,5.49388029]
[1746658060542,5.4931257,1820.5,1820.2,0.30359027]
[1746658060740,6.64664914,1820.5,1820.2,0.30359027]
[1746658060907,0.10280613,1820.4,1820.3,0.50336905]
[1746658061303,0.10280613,1820.4,1820.3,0.80695932]
[1746658061605,0.10280613,1820.4,1820.3,1.3083586]
[1746658062118,0.10280613,1820.4,1820.3,1.31063981]
[1746658062302,6.27104983,1820.4,1820.3,1.31063981]
[1746658064245,6.10773121,1820.4,1820.3,1.31063981]
[1746658064434,6.10773121,1820.4,1820.3,1.00704954]
[1746658064746,6.10773121,1820.4,1820.3,0.50139928]
[1746658064909,5.49390176,1820.2,1820.1,0.50565026]
[1746658065107,6.59266462,1820.2,1820.1,0.50565026]
[1746658065716,6.59266462,1820.2,1820.1,1.01228093]
[1746658065926,7.37776462,1820.2,1820.1,1.01228093]
[1746658072760,7.37776462,1820.2,1820.1,0.50663067]
[1746658073743,5.49450549,1820.0,1819.9,0.50742745]
[1746658075088,5.49450549,1820.0,1819.9,1.0148548]
[1746658075489,6.59338983,1820.0,1819.9,1.0148548]
[1746658075863,6.59338983,1820.0,1819.9,0.50742745]
[1746658075864,7.38788983,1820.0,1819.9,0.50742745]
[1746658076163,5.49524253,1819.8,1819.6,0.50742745]
[1746658076549,5.49524253,1819.8,1819.7,0.50742745]
[1746658077091,5.49524253,1819.8,1819.7,1.01511034]
[1746658077777,5.49524253,1819.8,1819.7,7.53855118]
[1746658077979,7.1437515,1819.8,1819.7,7.53855118]
[1746658078153,7.1437515,1819.8,1819.7,7.03086829]
[1746658078349,7.9382515,1819.8,1819.7,6.52344084]
[1746658080667,5.49601538,1819.5,1819.4,3.60931387]
[1746658080865,6.59520152,1819.5,1819.4,3.60931387]
[1746658081090,5.49601538,1819.5,1819.4,3.60931387]
[1746658084021,5.49601538,1819.5,1819.3,0.50741914]
[1746658084391,10.99227317,1819.5,1819.3,1.0148819]
[1746658084710,5.49625779,1819.5,1819.3,0.50746276]
[1746658085078,5.49632269,1819.4,1819.2,4.9290176]
[1746658085732,5.49632269,1819.4,1819.2,1.31970373]
[1746658087308,5.49661957,1819.3,1819.2,1.0148819]
[1746658087499,5.49661957,1819.3,1819.2,0.50741914]
[1746658088528,5.49661957,1819.3,1819.1,0.7938]
[1746658088726,5.49702838,1819.2,1819.0,10.33791387]
[1746658089321,5.49692813,1819.2,1819.0,10.33791387]
[1746658089523,5.49692813,1819.2,1819.0,10.75501147]
[1746658090096,5.49692813,1819.2,1819.0,10.33791387]
[1746658090293,5.49692813,1819.2,1819.0,4.41991387]
[1746658090725,5.49692813,1819.2,1819.0,0.8106]
[1746658095827,5.49692813,1819.2,1818.9,5.27605037]
[1746658096138,5.49781313,1819.0,1818.8,3.0]
[1746658096307,5.49782835,1818.9,1818.8,3.0]
[1746658096797,5.49782835,1818.9,1818.7,3.60931387]
[1746658096798,5.49813063,1818.8,1818.7,3.60931387]
[1746658096998,5.49768828,1819.0,1818.7,3.60931387]
[1746658097208,1.35429281,1819.2,1818.8,0.8218]
[1746658097209,5.49743682,1819.1,1818.8,0.8218]
[1746658097411,5.49757879,1819.0,1818.8,0.8218]
[1746658099013,5.49743682,1819.1,1818.8,0.8218]
[1746658099339,10.99493104,1819.1,1818.8,0.8218]
[1746658100547,5.49743682,1819.1,1818.8,0.8218]
[1746658100850,10.99488992,1819.1,1818.8,0.8218]
[1746658101721,5.49743682,1819.1,1818.8,0.8218]
[1746658102063,10.99491124,1819.1,1818.8,0.8218]
[1746658102233,10.99490328,1819.1,1818.8,0.8218]
[1746658102549,5.49743682,1819.1,1818.8,0.8218]
[1746658102753,5.49743682,1819.1,1818.8,1.12595211]
[1746658103053,5.49743682,1819.1,1818.8,1.63284664]
[1746658103254,10.99492757,1819.1,1818.8,1.63284664]
[1746658103955,10.99492757,1819.1,1818.8,2.13987152]
[1746658104653,5.49743682,1819.1,1818.8,2.13987152]
[1746658104822,5.49754045,1819.0,1818.8,2.13987152]
[1746658105021,5.49754045,1819.0,1818.8,1.31807152]
[1746658105222,5.49754045,1819.0,1818.8,1.01391941]
[1746658105418,5.49782835,1818.9,1818.7,1.31807152]
[1746658105723,5.49754045,1819.0,1818.7,1.31807152]
[1746658106517,5.49754045,1819.0,1818.8,0.50689453]
[1746658106717,5.49782835,1818.9,1818.7,0.81143108]
[1746658107053,5.49782835,1818.9,1818.7,1.31920933]
[1746658107245,5.49782835,1818.9,1818.7,1.31927027]
[1746658107439,5.49782835,1818.9,1818.7,1.31943264]
[1746658107759,5.49782835,1818.9,1818.8,0.50743648]
[1746658107963,7.35447747,1818.9,1818.8,0.50743648]
[1746658108254,5.49813063,1818.8,1818.7,0.30455831]
[1746658108453,5.49846317,1818.7,1818.6,0.50771622]
[1746658108620,5.49846317,1818.7,1818.6,1.01546974]
[1746658109263,5.49846317,1818.7,1818.6,1.32002805]
[1746658109649,5.49813063,1818.8,1818.6,0.81227453]
[1746658109821,10.99648607,1818.8,1818.6,1.32002805]
[1746658110020,5.49813063,1818.8,1818.6,1.32002805]
[1746658110239,5.49813063,1818.8,1818.6,1.01546974]
[1746658110415,5.49798006,1818.9,1818.6,0.50771622]
[1746658111035,10.99605589,1818.9,1818.6,1.01546974]
[1746658111361,5.49798006,1818.9,1818.6,1.32002805]
[1746658111572,10.99604489,1818.9,1818.6,1.32002805]
[1746658113787,10.99604489,1818.9,1818.7,0.50775352]
[1746658113990,12.17086938,1818.9,1818.7,0.50775352]
[1746658114384,5.498275,1818.8,1818.6,0.81227453]
[1746658114692,5.49843294,1818.7,1818.6,0.81227453]
[1746658114877,5.498275,1818.8,1818.6,0.81227453]
[1746658115051,5.498275,1818.8,1818.6,1.32060821]
[1746658115254,5.498275,1818.8,1818.6,1.0160499]
[1746658116483,5.498275,1818.8,1818.6,1.32060821]
[1746658117548,5.49843294,1818.7,1818.6,1.0160499]
[1746658117874,6.26563294,1818.7,1818.6,1.0160499]
[1746658118047,5.49873529,1818.6,1818.5,0.81289199]
[1746658118469,5.49873529,1818.6,1818.5,0.50833368]
[1746658118781,5.49903766,1818.5,1818.4,1.32060821]
[1746658119074,5.49903766,1818.5,1818.4,0.30455831]
[1746658119276,5.49903766,1818.5,1818.3,1.32060821]
[1746658119481,5.49903766,1818.5,1818.4,0.50833368]
[1746658121582,5.49890295,1818.6,1818.3,1.32060821]
[1746658121885,10.99786769,1818.6,1818.3,1.32060821]
[1746658122179,5.49890295,1818.6,1818.3,1.32060821]
[1746658122382,5.49890295,1818.6,1818.3,0.81227453]
[1746658122886,10.99787191,1818.6,1818.3,0.81227453]
[1746658123190,10.99787191,1818.6,1818.3,1.32039482]
[1746658123364,5.49890295,1818.6,1818.3,1.32039482]
[1746658123688,10.99786608,1818.6,1818.4,0.50812029]
[1746658123985,10.99786393,1818.6,1818.3,1.32039482]
[1746658124181,5.49890295,1818.6,1818.3,1.32039482]
[1746658124488,10.99786393,1818.6,1818.4,0.50812029]
[1746658124689,5.49903766,1818.5,1818.4,0.50812029]
[1746658125386,5.49903766,1818.5,1818.3,1.32039482]
[1746658125906,5.49903766,1818.5,1818.4,0.50812029]
[1746658126770,5.49903766,1818.5,1818.3,0.81227453]
[1746658126971,5.49903766,1818.5,1818.3,0.30455831]
[1746658127892,6.67540934,1818.6,1818.3,0.30455831]
[1746658127893,5.49890295,1818.6,1818.3,0.30455831]
[1746658128295,5.49890295,1818.6,1818.4,0.50834085]
[1746658128810,5.49890295,1818.6,1818.4,0.81289916]
[1746658129377,5.49832991,1818.8,1818.4,8.96089675]
[1746658129580,10.99673011,1818.8,1818.4,8.96089675]
[1746658129779,10.99673011,1818.8,1818.5,0.50834085]
[1746658130089,7.38791537,1818.8,1818.5,1.01605707]
[1746658130290,7.38791537,1818.8,1818.6,0.50834085]
[1746658130497,12.88629943,1818.8,1818.6,0.50834085]
[1746658130810,12.88627082,1818.8,1818.6,0.50834085]
[1746658131013,5.49832991,1818.8,1818.6,0.50834085]
[1746658131388,5.49832991,1818.8,1818.6,0.81289916]
[1746658132518,5.49832991,1818.8,1818.6,0.50834085]
[1746658132910,10.99673488,1818.8,1818.6,0.50834085]
[1746658133285,10.99673488,1818.8,1818.6,0.81289916]
[1746658133519,10.99673182,1818.8,1818.6,0.81289916]
[1746658133815,10.99673182,1818.8,1818.6,0.30455831]
[1746658134118,10.99673182,1818.8,1818.6,0.81227453]
[1746658134418,5.49843294,1818.7,1818.6,0.81227453]
[1746658134804,5.49843294,1818.7,1818.6,1.01649472]
[1746658135516,5.49843294,1818.7,1818.6,1.32105303]
[1746658136817,5.49843294,1818.7,1818.6,0.81333681]
[1746658138321,5.49843294,1818.7,1818.6,1.32105303]
[1746658141229,5.49843294,1818.7,1818.6,0.81333681]
[1746658141602,7.36020922,1818.7,1818.6,0.81333681]
[1746658141819,7.36020922,1818.7,1818.6,0.30455831]
[1746658142024,5.49873529,1818.6,1818.5,0.50771622]
[1746658142936,5.49903766,1818.5,1818.4,3.60931387]
[1746658143313,5.49903766,1818.5,1818.4,4.11898076]
[1746658143631,5.49903766,1818.5,1818.4,0.50966689]
[1746658145731,5.49947772,1818.4,1818.2,3.60931387]
[1746658146241,5.49947772,1818.4,1818.3,0.50972524]
[1746658146639,5.49947772,1818.4,1818.3,0.815538]
[1746658146938,5.49947772,1818.4,1818.3,1.32519007]
[1746658147797,5.49947772,1818.4,1818.3,0.81546483]
[1746658147991,5.49947772,1818.4,1818.3,0.81558617]
[1746658148832,5.49947772,1818.4,1818.3,1.32523824]
[1746658150211,5.49947772,1818.4,1818.3,0.81558617]
[1746658151038,5.49860831,1818.7,1818.3,3.44752535]
[1746658151335,5.49860831,1818.7,1818.4,0.50977341]
[1746658152030,5.49860831,1818.7,1818.5,0.81558617]
[1746658152422,5.49827711,1818.8,1818.6,0.50977341]
[1746658152621,5.49827711,1818.8,1818.6,1.01942548]
[1746658152823,10.99663994,1818.8,1818.6,1.01942548]
[1746658153137,5.49827711,1818.8,1818.7,0.50977341]
[1746658155943,5.49827711,1818.8,1818.7,0.81537724]
[1746658156944,5.49827711,1818.8,1818.7,0.50977341]
[1746658158245,5.49796245,1818.9,1818.7,0.50977341]
[1746658158444,11.39971568,1819.0,1818.7,0.50977341]
[1746658158632,11.39971568,1819.0,1818.7,1.01942548]
[1746658158831,16.89749224,1819.0,1818.8,0.50977341]
[1746658159346,16.89749224,1819.0,1818.7,0.50965207]
[1746658159661,5.49784895,1818.9,1818.7,0.50965207]
[1746658160639,5.49784895,1818.9,1818.8,0.50940601]
[1746658161046,5.49784895,1818.9,1818.7,0.50940601]
[1746658161429,5.49784895,1818.9,1818.7,0.81502842]
[1746658161430,10.99594852,1818.9,1818.7,0.81502842]
[1746658161647,5.49784895,1818.9,1818.7,0.30562241]
[1746658162050,10.99593184,1818.9,1818.7,0.30562241]
[1746658162222,5.49784895,1818.9,1818.8,0.50941976]
[1746658162612,10.99597414,1818.9,1818.7,0.50941976]
[1746658163044,5.49784895,1818.9,1818.7,0.50941976]
[1746658163253,10.99594564,1818.9,1818.7,0.50941976]
[1746658163411,5.49784895,1818.9,1818.8,0.50941976]
[1746658163611,5.49784895,1818.9,1818.7,0.50941976]
[1746658164149,5.49784895,1818.9,1818.7,0.81509526]
[1746658164446,10.99488095,1819.1,1818.7,7.66609271]
[1746658164654,10.99417416,1819.2,1818.9,2.61423918]
[1746658165146,5.49702995,1819.2,1818.9,2.61423918]
[1746658165453,5.49724254,1819.1,1818.9,2.61423918]
[1746658165820,5.49724254,1819.1,1819.0,0.50912584]
[1746658167447,5.49724254,1819.1,1819.0,0.81445337]
[1746658167747,5.49693874,1819.2,1819.0,0.81445337]
[1746658168252,10.99410255,1819.2,1819.0,0.81445337]
[1746658168419,5.4972239,1819.1,1819.0,0.81445337]
[1746658169658,5.4972239,1819.1,1819.0,0.30532753]
[1746658169861,10.99472602,1819.1,1818.9,4.36141387]
[1746658170040,10.99472602,1819.1,1818.9,4.87053971]
[1746658170257,10.99500424,1819.1,1818.9,4.87053971]
[1746658171165,5.49750212,1819.1,1818.9,4.87053971]
[1746658171458,5.49749423,1819.1,1818.9,4.11843971]
[1746658171762,5.49749423,1819.1,1818.9,0.50912584]
[1746658172962,5.49748753,1819.1,1818.9,0.50912584]
[1746658173984,5.49746251,1819.1,1818.9,0.50912584]
[1746658174477,5.49746251,1819.1,1818.9,0.8145039]
[1746658175380,5.49752611,1819.0,1818.9,0.8145039]
[1746658175888,5.49752611,1819.0,1818.9,0.30537806]
[1746658176487,5.49782835,1818.9,1818.8,3.60931387]
[1746658177066,5.49782835,1818.9,1818.8,4.11843971]
[1746658178796,5.49782835,1818.9,1818.8,0.50912584]
[1746658180109,5.49782835,1818.9,1818.8,0.81527228]
[1746658182807,5.49782835,1818.9,1818.8,0.50912584]
[1746658184809,5.49843294,1818.7,1818.6,0.8045]
[1746658185671,5.49843294,1818.7,1818.6,1.62148484]
[1746658186006,5.49843294,1818.7,1818.6,2.13212702]
[1746658187316,5.49843294,1818.7,1818.6,2.13217463]
[1746658188005,5.49843294,1818.7,1818.6,1.32767463]
[1746658188310,6.67353299,1818.7,1818.6,1.32767463]
[1746658188606,6.67353299,1818.7,1818.6,0.8170153]
[1746658188771,6.67353299,1818.7,1818.6,0.30637312]
[1746658188974,5.49873529,1818.6,1818.5,0.51065933]
[1746658189374,5.49903766,1818.5,1818.4,3.60931387]
[1746658189874,5.49903766,1818.5,1818.4,4.42668594]
[1746658190208,6.25633766,1818.5,1818.4,4.42668594]
[1746658190378,7.43184495,1818.5,1818.4,4.42668594]
[1746658190983,7.43184495,1818.5,1818.4,4.12016929]
[1746658191297,7.43184495,1818.5,1818.4,4.12012344]
[1746658191500,5.49964252,1818.3,1818.2,4.42665613]
[1746658191806,5.49964252,1818.3,1818.2,4.42654885]
[1746658191987,5.49964252,1818.3,1818.2,4.93723099]
[1746658192309,5.49964252,1818.3,1818.2,4.93700112]
[1746658192676,5.49964252,1818.3,1818.2,4.93588053]
[1746658192980,5.49964252,1818.3,1818.2,4.6291615]
[1746658193202,5.49964252,1818.3,1818.2,4.42492757]
[1746658193526,5.49964252,1818.3,1818.2,1.32527549]
[1746658194530,5.49938702,1818.4,1818.2,1.32527549]
[1746658194692,5.49938702,1818.4,1818.3,0.50971602]
[1746658195139,5.49989836,1818.3,1818.1,4.11902989]
[1746658195699,5.499945,1818.2,1818.1,4.11902989]
[1746658196418,5.499945,1818.2,1818.1,3.60931387]
[1746658196610,7.39322934,1818.2,1818.1,3.60931387]
[1746658196825,6.293245,1818.2,1818.1,3.60931387]
[1746658199933,5.50025927,1818.1,1817.9,0.5092498]
[1746658200429,5.49981251,1818.3,1818.0,2.64743918]
[1746658200933,5.49981251,1818.3,1818.0,3.15602678]
[1746658201132,5.49947845,1818.4,1818.2,1.86213918]
[1746658201833,5.49947845,1818.4,1818.2,2.37072678]
[1746658202332,5.49947845,1818.4,1818.2,1.86213918]
[1746658202902,5.49921456,1818.5,1818.2,8.15105386]
[1746658203106,5.49893907,1818.6,1818.4,1.86213918]
[1746658205951,10.99791812,1818.6,1818.4,1.86213918]
[1746658207058,5.49893907,1818.6,1818.4,1.86213918]
[1746658208056,5.49893907,1818.6,1818.4,2.37072678]
[1746658211779,5.49893907,1818.6,1818.4,1.86213918]
[1746658212770,5.49893907,1818.6,1818.3,1.86213918]
[1746658212971,5.49893907,1818.6,1818.3,2.37103534]
[1746658213379,5.49893907,1818.6,1818.3,1.86213918]
[1746658213672,5.49893907,1818.6,1818.4,0.50960692]
[1746658214172,5.49893907,1818.6,1818.3,7.36168484]
[1746658214376,5.49893907,1818.6,1818.3,1.86213918]
[1746658214573,5.4991694,1818.5,1818.3,1.86213918]
[1746658214739,5.4991694,1818.5,1818.3,2.37189273]
[1746658214935,5.4991694,1818.5,1818.3,2.67776019]
[1746658215258,5.4991694,1818.5,1818.4,0.50985041]
[1746658215460,6.26603405,1818.6,1818.4,0.50985041]
[1746658215671,5.49883405,1818.6,1818.4,0.50985041]
[1746658216180,5.49883405,1818.6,1818.3,8.17739941]
[1746658216355,5.49883405,1818.6,1818.3,7.87153195]
[1746658216870,5.49883405,1818.6,1818.3,7.3617784]
[1746658217080,5.49883405,1818.6,1818.3,1.86213918]
[1746658217282,5.49913396,1818.5,1818.4,0.51005849]
[1746658217663,10.99783324,1818.6,1818.4,0.51005849]
[1746658218182,5.49883405,1818.6,1818.5,0.51005849]
[1746658219088,0.7917,1818.7,1818.4,0.51005849]
[1746658219888,0.7917,1818.7,1818.5,0.51005849]
[1746658220387,0.7917,1818.7,1818.4,0.51005849]
[1746658220692,0.7917,1818.7,1818.5,0.51005849]
[1746658221183,0.7917,1818.7,1818.4,0.51005849]
[1746658221687,0.7917,1818.7,1818.5,0.51005849]
[1746658222187,0.7917,1818.7,1818.4,0.51005849]
[1746658222690,0.7917,1818.7,1818.5,0.51005849]
[1746658224803,0.7917,1818.7,1818.4,0.51005849]
[1746658225282,0.7917,1818.7,1818.3,2.6775758]
[1746658226092,0.7917,1818.7,1818.4,1.0194828]
[1746658226395,0.7917,1818.7,1818.5,0.50972186]
[1746658226759,0.7917,1818.7,1818.4,0.81543662]
[1746658226958,0.7917,1818.7,1818.4,0.81585481]
[1746658227494,0.7917,1818.7,1818.5,0.51039296]
[1746658228296,0.7917,1818.7,1818.4,0.51017913]
[1746658228784,0.7917,1818.7,1818.4,0.81585481]
[1746658229299,0.7917,1818.7,1818.5,0.510984]
[1746658230010,0.7917,1818.7,1818.3,3.60931387]
[1746658230564,0.7917,1818.7,1818.4,0.51112309]
[1746658230987,0.7917,1818.7,1818.3,3.60931387]
[1746658231184,0.7917,1818.7,1818.4,0.3069156]
[1746658231586,0.26264774,1818.6,1818.5,0.51133686]
[1746658233274,0.26264774,1818.6,1818.3,3.60931387]
[1746658233685,0.7917,1818.7,1818.4,0.51132913]
[1746658234509,0.7917,1818.7,1818.3,3.60931387]
[1746658234804,0.24743492,1818.6,1818.4,0.30673326]
[1746658235005,0.24743492,1818.6,1818.5,0.51175152]
[1746658239019,0.24743492,1818.6,1818.5,1.02353222]
[1746658239600,0.24743492,1818.6,1818.5,1.33060738]
[1746658247238,0.24743492,1818.6,1818.5,0.81882668]
[1746658247623,0.24743492,1818.6,1818.5,0.51175152]
[1746658249940,0.24743492,1818.6,1818.5,2.6812281]
[1746658250125,0.8121,1819.1,1818.5,3.5107281]
[1746658250302,0.8121,1819.1,1818.6,1.02361585]
[1746658250505,0.2472006,1819.0,1818.6,1.02361585]
[1746658250915,0.2472006,1819.0,1818.7,0.3073374]
[1746658251115,0.2472006,1819.0,1818.7,0.81908892]
[1746658251544,0.2472006,1819.0,1818.8,0.51175152]
[1746658251852,0.2472006,1819.0,1818.9,0.51175152]
[1746658252344,0.2472006,1819.0,1818.8,0.51163685]
[1746658253154,0.2472006,1819.0,1818.7,3.60931387]
[1746658253989,0.2472006,1819.0,1818.7,5.47145305]
[1746658254161,0.2472006,1819.0,1818.9,2.69163918]
[1746658254331,0.2472006,1819.0,1818.9,6.29660624]
[1746658254528,0.7858,1819.7,1819.0,0.8295]
[1746658254756,0.7858,1819.7,1819.1,1.86213918]
[1746658254946,0.25157331,1819.6,1819.2,0.51126957]
[1746658255347,0.7858,1819.7,1819.2,0.51126957]
[1746658255549,0.25157331,1819.5,1819.2,0.51126957]
[1746658255777,0.7858,1819.7,1819.3,0.8286]
[1746658256083,1.44908,1819.7,1819.3,0.8286]
[1746658256376,0.2550857,1819.6,1819.3,0.8286]
[1746658256678,0.7858,1819.7,1819.3,0.8286]
[1746658256838,0.2550857,1819.5,1819.3,0.8286]
[1746658257041,0.7858,1819.7,1819.3,1.33986957]
[1746658257277,0.2550857,1819.4,1819.3,1.33986957]
[1746658257480,0.7858,1819.7,1819.3,1.33986957]
[1746658257667,0.2550857,1819.4,1819.3,1.33986957]
[1746658257982,0.7858,1819.7,1819.3,0.8286]
[1746658258374,0.2550857,1819.6,1819.5,1.86213918]
[1746658258677,0.8033,1820.0,1819.5,2.65973918]
[1746658258871,0.25610007,1819.6,1819.5,2.65973918]
[1746658259093,0.8033,1820.0,1819.5,0.7976]
[1746658259299,0.8033,1820.0,1819.4,0.7721]
[1746658259452,0.8033,1820.0,1819.4,0.82705721]
[1746658259652,0.25610007,1819.9,1819.4,0.82705721]
[1746658261007,0.25610007,1819.9,1819.5,1.86213918]
[1746658261163,0.25610007,1819.9,1819.6,0.7917]
[1746658261498,6.62553543,1820.1,1819.6,0.7917]
[1746658261658,0.25610007,1819.8,1819.6,0.7917]
[1746658261860,6.62553543,1820.1,1819.6,0.7917]
[1746658262061,5.7515114,1819.7,1819.6,0.7917]
[1746658262300,5.49541133,1819.7,1819.6,0.7917]
[1746658262475,5.7515114,1819.7,1819.6,0.7917]
[1746658262958,5.49571334,1819.6,1819.5,1.86213918]
[1746658263164,5.49601538,1819.5,1819.4,0.7523]
[1746658263395,5.49571334,1819.6,1819.4,0.7523]
[1746658263595,0.25610007,1819.5,1819.4,0.7523]
[1746658269042,5.75211545,1819.5,1819.4,0.7523]
[1746658269655,5.75211545,1819.5,1819.3,2.63773918]
[1746658269951,0.25610007,1819.5,1819.3,0.7756]
[1746658270245,5.49631746,1819.4,1819.3,0.7756]
[1746658270407,5.76006486,1819.4,1819.2,2.63773918]
[1746658270612,5.36104294,1819.4,1819.2,2.63773918]
[1746658271029,5.36104294,1819.4,1819.2,0.7756]
[1746658271229,5.76021981,1819.4,1819.2,0.7756]
[1746658271859,11.2567609,1819.4,1819.2,0.7756]
[1746658272085,5.76021981,1819.4,1819.2,0.7756]
[1746658273060,5.49661957,1819.3,1819.2,0.7756]
[1746658273218,5.49692172,1819.2,1819.1,3.0]
[1746658273557,0.26359138,1819.2,1819.1,4.86213918]
[1746658274425,5.7605131,1819.2,1819.1,4.86213918]
[1746658275553,5.7605131,1819.2,1819.0,3.0]
[1746658275878,5.7605131,1819.2,1818.9,13.20395596]
[1746658276750,5.7605131,1819.2,1818.8,6.29275504]
[1746658277049,5.7605131,1819.2,1818.8,5.49811134]
[1746658277050,6.24980871,1819.1,1818.8,5.49811134]
[1746658277260,1.01185644,1819.1,1818.6,2.61523918]
[1746658277753,1.01185644,1819.1,1818.8,1.86213918]
[1746658280068,1.01185644,1819.1,1818.8,2.37148462]
[1746658280453,0.25945644,1819.1,1819.0,1.86213918]
[1746658280779,0.25945644,1819.1,1819.0,2.37148462]
[1746658280993,0.7561,1819.4,1819.0,2.37148462]
[1746658281276,5.49702549,1819.2,1819.0,2.37148462]
[1746658281429,5.49702549,1819.2,1819.0,2.37146714]
[1746658281630,5.49702549,1819.2,1819.0,2.37146441]
[1746658281847,5.75511958,1819.1,1819.0,0.50932523]
[1746658282172,1.03399568,1819.1,1819.0,0.50932523]
[1746658282471,0.7761,1819.1,1819.0,0.50932523]
[1746658282673,0.7761,1819.1,1818.9,1.01860355]
[1746658282958,0.7761,1819.1,1818.9,0.5093707]
[1746658283163,5.49752611,1819.0,1818.9,0.5093707]
[1746658283386,5.49782835,1818.9,1818.8,0.5093707]
[1746658283868,5.75603621,1818.9,1818.8,0.5093707]
[1746658284076,0.25820786,1818.9,1818.8,0.5093707]
[1746658284373,0.25820786,1818.9,1818.8,0.50946935]
[1746658284558,0.7761,1819.1,1818.8,0.50946935]
[1746658284764,0.25820786,1818.9,1818.7,0.81512635]
[1746658284943,0.7761,1819.1,1818.7,0.81512635]
[1746658285138,0.25820786,1818.8,1818.7,0.81512635]
[1746658285669,5.75633849,1818.8,1818.7,1.32446929]
[1746658286663,5.75633849,1818.8,1818.7,0.50934294]
[1746658288766,0.25820786,1818.8,1818.7,0.50934294]
[1746658289270,5.75633849,1818.8,1818.7,0.50934294]
[1746658289860,5.49843294,1818.7,1818.6,4.01260847]
[1746658290059,5.49843294,1818.7,1818.6,3.18660847]
[1746658290266,5.75500205,1818.7,1818.6,2.88094675]
[1746658290647,5.75500205,1818.7,1818.6,2.37148212]
[1746658291076,5.75500205,1818.7,1818.6,1.86213918]
[1746658291274,0.25656911,1818.7,1818.6,1.86213918]
[1746658291472,5.75500205,1818.7,1818.6,1.86213918]
[1746658291675,5.49873529,1818.6,1818.5,1.01880757]
[1746658291879,5.49873529,1818.6,1818.5,0.50934294]
[1746658292246,5.7553044,1818.6,1818.5,0.50934294]
[1746658292589,5.49903766,1818.5,1818.4,0.50946463]
[1746658292788,6.25073766,1818.5,1818.4,0.50946463]
[1746658293086,5.49934007,1818.4,1818.3,3.60931387]
[1746658293300,5.49964252,1818.3,1818.2,3.60931387]
[1746658293653,5.75308922,1818.3,1818.2,3.60931387]
[1746658296085,5.50024751,1818.1,1818.0,1.86213918]
[1746658296443,5.75361613,1818.1,1818.0,1.86213918]
[1746658296689,5.50085263,1817.9,1817.8,6.53481975]
[1746658296854,5.50085263,1817.9,1817.8,5.71531975]
[1746658297287,5.7441479,1817.9,1817.8,5.71531975]
[1746658297950,5.7441479,1817.9,1817.8,3.85318057]
[1746658299578,5.7441479,1817.9,1817.8,0.2438667]
[1746658303368,0.24329527,1817.9,1817.8,0.2438667]
[1746658303557,5.7441479,1817.9,1817.8,0.2438667]
[1746658303882,0.24329527,1817.9,1817.8,0.2438667]
[1746658306558,5.50085263,1817.9,1817.8,0.2438667]
[1746658306758,0.2416546,1817.9,1817.8,0.2438667]
[1746658313464,0.2416546,1817.9,1817.8,5.74502194]
[1746658313597,0.2416546,1817.9,1817.8,10.10143272]
[1746658313907,5.49997131,1818.2,1817.9,5.50084405]
[1746658314111,5.49997131,1818.2,1817.9,7.36298323]
[1746658314306,5.49997131,1818.2,1817.9,7.41798612]
[1746658314905,5.49997131,1818.2,1817.9,1.91714207]
[1746658315071,5.49997131,1818.2,1817.9,1.86213918]
[1746658315471,11.00016502,1818.2,1817.9,1.86213918]
[1746658315708,5.50040771,1818.1,1817.9,2.37129721]
[1746658320086,5.50040771,1818.1,1818.0,0.50915803]
[1746658322524,5.50040771,1818.1,1818.0,1.01950732]
[1746658322742,6.67252487,1818.1,1818.0,1.01950732]
[1746658323021,6.67252487,1818.1,1818.0,0.51034929]
[1746658323696,5.50085263,1817.9,1817.8,1.06093073]
[1746658324223,5.74219484,1817.9,1817.8,1.06093073]
[1746658324418,5.74219484,1817.9,1817.8,1.57243513]
[1746658324724,5.74219484,1817.9,1817.8,1.26572039]
[1746658324928,5.74219484,1817.9,1817.8,0.7553711]
[1746658325693,5.74219484,1817.9,1817.8,1.06208584]
[1746658326027,5.74219484,1817.9,1817.8,1.57243513]
[1746658330332,0.24134221,1817.9,1817.8,3.43457431]
[1746658330517,0.24134221,1817.9,1817.8,13.32283556]
[1746658330835,5.49995558,1818.2,1817.9,5.5007799]
[1746658331037,5.49995558,1818.2,1818.0,2.37364358]
[1746658331745,5.49995558,1818.2,1818.1,0.5115044]
[1746658333034,5.49995558,1818.2,1818.1,0.81830905]
[1746658333330,5.49995558,1818.2,1818.1,1.32962458]
[1746658333531,6.59992733,1818.2,1818.1,1.32962458]
[1746658333736,7.37932733,1818.2,1818.1,1.32962458]
[1746658333919,7.37932733,1818.2,1818.1,1.02281993]
[1746658334838,7.37932733,1818.2,1818.1,0.5115044]
[1746658338729,7.62191946,1818.2,1818.1,0.5115044]
[1746658339734,6.30415005,1818.0,1817.9,3.60931387]
[1746658339935,7.4846034,1818.0,1817.9,3.60931387]
[1746658340143,7.72688303,1818.0,1817.9,3.60931387]
[1746658341011,5.50085263,1817.9,1817.8,0.2438667]
[1746658341208,5.74258534,1817.9,1817.8,0.75485899]
[1746658344664,7.06530421,1817.9,1817.8,0.75485899]
[1746658346035,7.06530421,1817.9,1817.8,0.2438667]
[1746658346440,5.74258534,1817.9,1817.8,0.2438667]
[1746658347250,0.24173271,1817.9,1817.8,1.82908276]
[1746658347821,0.24173271,1817.9,1817.8,2.3397562]
[1746658348752,5.50058187,1818.0,1817.8,5.27183163]
[1746658348949,0.23977951,1817.9,1817.8,4.76115819]
[1746658349152,5.50058187,1818.0,1817.9,1.86213918]
[1746658349529,5.50036478,1818.1,1817.9,1.86213918]
[1746658349732,5.50013435,1818.2,1817.9,2.37255294]
[1746658349924,11.00033822,1818.2,1818.0,1.02142116]
[1746658350123,5.50024751,1818.1,1818.0,1.02142116]
[1746658350755,5.50013435,1818.2,1818.0,1.02142116]
[1746658351050,5.50013435,1818.2,1818.0,1.32759508]
[1746658351259,5.50013435,1818.2,1818.1,0.51041376]
[1746658351553,5.50013435,1818.2,1818.1,1.02142116]
[1746658352774,5.50013435,1818.2,1818.1,0.51041376]
[1746658354465,5.49940576,1818.4,1818.1,3.18415294]
[1746658354758,5.49940576,1818.4,1818.2,0.51041376]